Cogmind - Beta 15 *** ADVENTURER MODE // 2025.07.30 @ 13:29:43 Player: LegoMDS Result: Destroyed by L1-IDR(R) with Subdweller Machine Gun Performance ------------- Evolutions (0) 0 Regions Visited (2) 400 Robots Destroyed (24) 120 Value Destroyed (641) 641 Prototype IDs (4) 80 Alien Tech Used (0) 0 Bonus (0) 0 TOTAL SCORE: 1241 Bonus ------- None Cogmind --------- Core Integrity 0/250 Matter 292/300 Energy 245/250 System Corruption 0% Temperature Cool (0) Movement Walking (190) Ox1 Location -10/Subcaves Parts ------- > --- POWER (1) -------- Ion Engine > --- PROPULSION (2) --- Aluminum Leg Aluminum Leg > --- UTILITY (2) ------ Heat Sink Medium Storage Unit > --- WEAPON (2) ------- Beam Rifle Shotgun > --- INVENTORY (10) --- Subdweller Power Source Disposable Heat Sink Subdweller Optics Light Armor Plating Shield Generator Shotgun Shotgun Mini Grenade Launcher Flamer Peak State ------------ > --- POWER ------------ Ion Engine > --- PROPULSION ------- Aluminum Leg Aluminum Leg > --- UTILITY ---------- Heat Sink Medium Storage Unit > --- WEAPON ----------- Shotgun Mini Grenade Launcher > --- INVENTORY -------- Subdweller Power Source Disposable Heat Sink Subdweller Optics Shield Generator Shotgun Shotgun Flamer [Rating: 10] Favorites ----------- Power Ion Engine Engine Ion Engine Propulsion Aluminum Leg Leg Aluminum Leg Utility Medium Storage Unit Device Heat Sink Storage Medium Storage Unit Weapon Medium Laser Energy Gun Medium Laser Ballistic Gun Shotgun Launcher Mini Grenade Launcher Special Weapon Flamer Build | -11 -10 -10 ------- Run | Yrd Mat Sub Slots Evolved . | . . . Power . | . . . Propulsion . | . . . Utility . | . . . Weapon . | . . . Parts Attached 19 | 6 8 5 Power 2 | 1 1 . Engine 2 | 1 1 . Core . | . . . Reactor . | . . . Propulsion 7 | 2 4 1 Treads . | . . . Leg 7 | 2 4 1 Wheel . | . . . Hover . | . . . Flight . | . . . Utility 3 | 1 2 . Device 1 | . 1 . Storage 2 | 1 1 . Processor . | . . . Hackware . | . . . Protection . | . . . Artifact . | . . . Weapon 7 | 2 1 4 Energy Gun 2 | 1 . 1 Energy Cannon . | . . . Ballistic Gun 3 | 1 1 1 Ballistic Cannon . | . . . Launcher 1 | . . 1 Special Weapon 1 | . . 1 Impact Weapon . | . . . Slashing Weapon . | . . . Piercing Weapon . | . . . Special Melee Weapon . | . . . Unidentified Prototypes . | . . . Parts Lost 3 | . . 3 Power . | . . . Propulsion 1 | . . 1 Utility . | . . . Weapon 2 | . . 2 Highest Loss Streak 2 | . . 2 To Critical Strikes . | . . . Average Backups 7 | 2 7 8 Power . | 1 . . Propulsion 1 | . 2 . Utility 1 | . . 3 Weapon 3 | . 3 3 Tool/Special . | . . . Unused Backups 14 | . 4 10 Power 1 | . . 1 Propulsion 3 | . 1 2 Utility 4 | . . 4 Weapon 6 | . 3 3 Tool/Special . | . . . Average Slot Usage (%) 91 | . 85 98 Engine 14 | . 14 14 Leg 25 | . 25 26 Device 8 | . 3 14 Storage 14 | . 14 14 Energy Gun 12 | . 14 10 Ballistic Gun 13 | . 13 14 Peak Build Rating 10 | 6 9 10 Average Rating 7 | 3 6 9 On Entrance 4 | . 6 7 Naked Turns . | . . . Heaviest Build 22 | 14 21 22 Greatest Support 20 | 20 20 20 Greatest Overweight (x) 2 | . 1 2 Average Overweight (x) . | . . . Largest Inventory Capacity 10 | 8 10 10 Average Capacity 9 | 6 9 10 Most Carried 10 | 5 10 10 Average Carried 7 | 2 7 8 Final Capacity 10 | 8 10 10 Final Carried 10 | 2 10 9 Class Distribution -------------------- 90% | Mutant 9% | Scavenger-Mutant Dominant Class ---------------- Mutant | -10/Materials Mutant | -10/Subcaves Resources | -11 -10 -10 ----------- Run | Yrd Mat Sub Matter Collected 627 | 176 290 161 Remotely . | . . . Salvage Created 774 | . 497 277 Parts 52 | . 35 17 Haulers Intercepted 1 | . 1 . Recyclers Shooed . | . . . Parts Field Recycled . | . . . Retrieved Matter . | . . . Parts Self-Destructed 13 | . . 13 Prevented . | . . . Kills | -11 -10 -10 ------- Run | Yrd Mat Sub Combat Hostiles Destroyed 20 | . 13 7 Guns 18 | . 13 5 AOE 2 | . . 2 Classes Destroyed 6 | . 4 2 Hauler 1 | . 1 . Watcher 3 | . 3 . Swarmer 6 | . 6 . Grunt 10 | . 7 3 Sentry 1 | . . 1 Subdweller 3 | . . 3 Best Kill Streak 3 | . 3 2 Combat Bots Only 3 | . 3 2 Max Kills in Single Turn 2 | . 2 2 Gunslinging 1 | . 1 1 Exploded 2 | . . 2 Melee . | . . . Uniques/NPCs Destroyed . | . . . Combat | -11 -10 -10 -------- Run | Yrd Mat Sub Hostile Shots Fired 138 | . 80 58 Missed 39 | . 25 14 Hits 99 | . 55 44 Projectile 99 | . 55 44 Critical Strikes 1 | . 1 . Damage Taken 988 | . 411 577 Core 251 | . 77 174 Absorbed by Shields . | . . . Ignored by Resistances 299 | . 134 165 Core Remaining (%) 100 | 100 . . Volleys Fired 58 | . 37 21 Largest 2 | . 2 2 Hottest 123 | . 73 123 Shots Fired 110 | . 73 37 Gun 107 | . 73 34 Cannon . | . . . Launcher 1 | . . 1 Special 2 | . . 2 Kinetic 56 | . 36 20 Thermal 53 | . 37 16 Explosive 1 | . . 1 Electromagnetic . | . . . Robot Hit Streak 23 | . 12 23 Robot Miss Streak 4 | . 4 2 Penetration Max . | . . . Secondary Targets 6 | . 4 2 Max Gunslinging Chain 1 | . 1 1 Shots Hit Robots 85 | . 55 30 Core Hits 41 | . 26 15 Critical Kills . | . . . Critical Parts Destroyed 1 | . 1 . Critical Strikes 6 | . 5 1 Burn 5 | . 4 1 Destroy 1 | . 1 . Melee Attacks . | . . . Impact . | . . . Slashing . | . . . Piercing . | . . . Sneak Attacks . | . . . Combat Hostiles . | . . . Follow-up Attacks . | . . . Damage Inflicted 1317 | . 742 575 Guns 1231 | . 742 489 Cannons . | . . . Explosions 86 | . . 86 Melee . | . . . Ramming . | . . . Kinetic 752 | . 390 362 Thermal 479 | . 352 127 Explosive 86 | . . 86 Electromagnetic . | . . . Impact . | . . . Slashing . | . . . Piercing . | . . . Highest Corruption . | . . . Average Corruption . | . . . Corruption Purged . | . . . Corruption Blocked . | . . . Overload Shots . | . . . Overflow Damage . | . . . Projectiles . | . . . Explosions . | . . . Melee . | . . . Knockbacks . | . . . Impact . | . . . Kinetic . | . . . Secondary . | . . . Self-Inflicted Damage . | . . . Shots . | . . . Rammed . | . . . Targets Rammed . | . . . Kicked . | . . . Crushed . | . . . Highest Temperature 87 | . 87 . Average Temperature 30 | . 30 . Received Heat Transfer 471 | . 198 273 Siege Activations . | . . . Martial Activations . | . . . Shielding Activations . | . . . Robots Disrupted . | . . . Combat Hostiles . | . . . Robots Corrupted . | . . . Combat Hostiles . | . . . Parts Fried . | . . . Impact Corruptions . | . . . Robots Melted . | . . . Combat Hostiles . | . . . Parts Melted 2 | . 1 1 Heat Transferred 1776 | . 1332 444 Parts Sabotaged . | . . . Parts Stolen . | . . . Parts Stripped . | . . . Power Chain Reactions . | . . . Alert | -11 -10 -10 ------- Run | Yrd Mat Sub Maximum Alert Level . | . . . Low Security (%) 100 | 100 100 . Level 1 . | . . . Level 2 . | . . . Level 3 . | . . . Level 4 . | . . . Level 5 . | . . . High Security . | . . . Max Security . | . . . Peak Influence 84 | . 84 . Initial . | . . . Average 19 | . 20 . Influence Increases 451 | . 361 90 Destroy 0b10 Robot/C 340 | . 260 80 Destroy 0b10 Robot/NC 20 | . 20 . Destroy Leader 68 | . 58 10 Successful Hack 8 | . 8 . Lose Combat Pursuer 15 | . 15 . Influence Decreases 451 | . 361 90 Time Decay 441 | . 361 80 Lost Part 10 | . . 10 Squads Dispatched 2 | . 2 . Investigation 2 | . 2 . Extermination . | . . . Reinforcement . | . . . Assault . | . . . Garrison . | . . . Intercept . | . . . Searches Triggered . | . . . Construction Impeded . | . . . Haulers Reinforced . | . . . Active Scanning Responses . | . . . Cargo Convoy Interrupts . | . . . Stealth | -11 -10 -10 --------- Run | Yrd Mat Sub Distress Signals . | . . . Communications Jammed . | . . . Distress Signals . | . . . Times Spotted 27 | . 17 10 Peak Tracking Total 3 | . 3 2 Tactical Retreats 1 | . 1 . Traps | -11 -10 -10 ------- Run | Yrd Mat Sub Traps Triggered 4 | . 4 . Indirectly . | . . . Trap Hack Attempts . | . . . Triggered . | . . . Disarmed . | . . . Reprogrammed . | . . . Reused . | . . . Traps Extracted . | . . . Installed . | . . . Triggered . | . . . Machines | -11 -10 -10 ---------- Run | Yrd Mat Sub Machines Disabled 1 | . 1 . Max in Single Turn 1 | . 1 . Machines Repaired . | . . . Machines Dismantled . | . . . Machines Sabotaged . | . . . Overloaded Fab Kills . | . . . Hacking | -11 -10 -10 --------- Run | Yrd Mat Sub Machines Accessed 6 | . 6 . Terminals 6 | . 6 . Fabricators . | . . . Repair Stations . | . . . Recycling Units . | . . . Scanalyzers . | . . . Garrison Access . | . . . Total Hacks 13 | . 13 . Successful 7 | . 7 . Failed 6 | . 6 . Catastrophic . | . . . Database Lockouts . | . . . Manual . | . . . Terminals 13 | . 13 . Fabricators . | . . . Repair Stations . | . . . Recycling Units . | . . . Scanalyzers . | . . . Garrison Access . | . . . Terminal Hacks 7 | . 7 . Prototype ID Bank 2 | . 2 . Hauler Manifests 2 | . 2 . Registered Components 1 | . 1 . Zone Layout 2 | . 2 . Fabricator Hacks . | . . . Repair Station Hacks . | . . . Recycling Unit Hacks . | . . . Scanalyzer . | . . . Garrison Access Hacks . | . . . Unauthorized Hacks . | . . . Terminals . | . . . Fabricators . | . . . Repair Stations . | . . . Recycling Units . | . . . Scanalyzers . | . . . Garrison Access . | . . . Data Cores Recovered . | . . . Used . | . . . Hacking Detections 3 | . 3 . Full Trace Events 2 | . 2 . Feedback Events . | . . . Feedback Blocked . | . . . Robot Schematics Acquired . | . . . Robots Built . | . . . Authchips . | . . . Time . | . . . Total Robot Build Rating . | . . . Part Schematics Acquired . | . . . Parts Built . | . . . Authchips . | . . . Time . | . . . Total Part Build Rating . | . . . Parts Repaired . | . . . Time . | . . . Parts Recycled . | . . . Recycled Matter . | . . . Retrieved Matter . | . . . Retrieved Components . | . . . Parts Scanalyzed . | . . . Part Schematics Acquired . | . . . Parts Damaged . | . . . Bothacking | -11 -10 -10 ------------ Run | Yrd Mat Sub Used RIF Installer . | . . . Robots Hacked . | . . . Non-combat . | . . . Combat . | . . . Robot Hacks Applied . | . . . Relay Couplers Released . | . . . Fabnet Peak Effective % . | . . . Robots Rewired . | . . . Allies Hacked . | . . . Hacks Repelled . | . . . Allies | -11 -10 -10 -------- Run | Yrd Mat Sub Total Allies . | . . . Largest Group . | . . . Highest-Rated Group . | . . . Highest-Rated Ally . | . . . Total Orders . | . . . Ally Attacks . | . . . Total Damage . | . . . Kills . | . . . Allies Corrupted . | . . . Allies Melted . | . . . Intel | -11 -10 -10 ------- Run | Yrd Mat Sub Active Infowar (turns) . | . . . Robot Analysis Total . | . . . Derelict Logs Recovered 2 | . . 2 Drone Launches . | . . . Drone Recoveries . | . . . Exploration | -11 -10 -10 ------------- Run | Yrd Mat Sub Turns Passed 2291 | 41 1153 1097 Spaces Moved 1185 | 28 613 544 Core 8 | 8 . . Treads . | . . . Legs 1177 | 20 613 544 Wheels . | . . . Hover . | . . . Flight . | . . . Fastest Speed 50 | 50 120 120 Average Speed 157 | 100 136 184 Slowest Speed 260 | 120 190 260 Overloaded Moves . | . . . Propulsion Burnouts . | . . . Robots Hopped . | . . . Potential Cave-ins . | . . . Cave-ins Triggered . | . . . Exploration Rate (%) 45 | 4 96 37 Regions Visited 2 Branch Regions 1 Pre-discovered Areas 2 | . . 2 Known Exits Taken . | . . . Unknown Exits Taken 2 | 1 1 . Scrap Searched . | . . . Spaces Dug . | . . . Terrain Destroyed 8 | . . 8 Melee . | . . . Projectile . | . . . AOE 8 | . . 8 Terrain Rammed . | . . . Walls Destroyed . | . . . Machines Disabled . | . . . Actions | -11 -10 -10 --------- Run | Yrd Mat Sub Total 1501 | 41 857 603 Wait 192 | . 174 18 Move 1183 | 27 612 544 Hop . | . . . Pick Up 31 | 8 15 8 Fast Attach 2 | . 2 . Attach 12 | 6 2 4 Detach . | . . . Swap 9 | . 6 3 Drop 14 | . 9 5 Fire 58 | . 37 21 Melee . | . . . Ram . | . . . Kick . | . . . Crush . | . . . Escape Stasis . | . . . Rewire . | . . . Trap . | . . . Miscellaneous . | . . . Route ------- -11/Scrapyard -10/Materials (discovered 5 exits: [*Mat x3] / [*Min] / [*Sub]) -10/Subcaves (discovered 1 exit: [*Mat]) History --------- Turn | Location | Event 23 | -11/Scrapyard | Discovered new exit (range 14) 42 | -11/Scrapyard | Entered Materials 314 | -10/Materials | Build established: Mutant 371 | -10/Materials | Discovered new exit (range 5) 521 | -10/Materials | Discovered new exit (range 15) 857 | -10/Materials | Discovered new exit (range 8) 973 | -10/Materials | Discovered new exit (range 15) 1182 | -10/Materials | Discovered new exit (range 9) 1195 | -10/Materials | Entered Subcaves 1199 | -10/Subcaves | Shifting Twisted Machinery released Sub. Optics 1199 | -10/Subcaves | Shifting Twisted Machinery released Flamer 1230 | -10/Subcaves | Discovered new exit (range 9) 1411 | -10/Subcaves | Learned location of Storage (-8) 1507 | -10/Subcaves | Learned location of Zion (-7) 1507 | -10/Subcaves | Met a Zionite searching for "candidates" 1642 | -10/Subcaves | Shifting Twisted Machinery released Flamer 1685 | -10/Subcaves | Core integrity fell below 50% 1905 | -10/Subcaves | Learned 8 Materials zone layouts 1964 | -10/Subcaves | Core integrity fell below 20% 2292 | -10/Subcaves | Destroyed by L1-IDR(R) with Subdweller Machine Gun Last Messages --------------- Subatomizers dissect the Sub. Machine Gun. G-34 Mercenary destroyed. Flamer destroyed. Ion Engine fries itself beyond repair. Aluminum Leg destroyed. Acquired Aluminum Leg. Subatomizers dissect the Sub. Optics. Aluminum Leg fries itself beyond repair. Y-45 Defender destroyed. Acquired 16 matter. Acquired Lgt. Armor Plating. Hvy. Assault Rifle fries itself beyond repair. Subatomizers dissect the Sub. Optics. Acquired Beam Rifle. Subatomizers dissect the Sub. Optics. Acquired 11 matter. Acquired Flamer. Acquired 9 matter. PM-EM4(R) destroyed. Switching to secondary target: L1-IDR(R). Map ----- +----------------------------------------------------+ | ?????????????????????????????????????????????????? | | ?????????????????????????????????????????????????? | | ?????????????????????????????????????????????????? | | ?????????????????????????????????????????????????? | | ?????????????????????????????????????????????????? | | ##???????????????????????????????????????????????? | | ##??????????????????????????????????????????????? | | # ###????????????????????????????????????????????? | | ## ###??????????????????????????????????????????? | | ?### #??????????????????????????????????????????? | | ???## ##?????????????????????????????????????????? | | ????# ##????????????????????????????????????????? | | ????###"##???????????????????????????????????????? | | ??????## ###?????????????????????????????????????? | | ???????## #?????????????????????????????????????? | | ????????## ###???????????????????????????????????? | | ?????????## #???????????????????????????????????? | | ??????????## ##??????????????????????????????????? | | ???????????# ##?????????????????????????????????? | | ???????????### ###???????????????????????????????? | | ?????????????## #???????????????????? ??????????? | | ??????????????## ##???????????????? ##?????????? | | ???????????????## ##???????##??? ?????????? | | ????????????????## ######## ## ????????? | | ?????????????????## ## # # [* ????????? | | ?????????????????# #% @ R%& #?????????????? | | ?????????????????## # & #???????????????? | | ??????????????????#### # ##???????????????? | | ?????????????????????#### ###????????????????? | | ???????????????????????? #??????????????????? | | ???????????????????????? ?????????????????? | | ???????????????????????? ???????????????? | | ???????????????????????? ??????????????? | | ???????????????????????? ### ###?????????????? | | ????????????????????????######??##???????????????? | | ?????????????????????????????????????????????????? | | ?????????????????????????????????????????????????? | | ?????????????????????????????????????????????????? | | ?????????????????????????????????????????????????? | | ?????????????????????????????????????????????????? | | ?????????????????????????????????????????????????? | | ?????????????????????????????????????????????????? | | ?????????????????????????????????????????????????? | | ?????????????????????????????????????????????????? | | ?????????????????????????????????????????????????? | | ?????????????????????????????????????????????????? | | ?????????????????????????????????????????????????? | | ?????????????????????????????????????????????????? | | ?????????????????????????????????????????????????? | | ?????????????????????????????????????????????????? | +----------------------------------------------------+ Best States ------------- Heat Dissipation 35 Energy Generation 10 Energy Capacity 250 Matter Stores 300 Matter Capacity 300 Sight Range 16 Terrain Scan Density 10 Resistance: KI 20 Resistance: TH 20 Resistance: EX 20 Resistance: EM 20 Resistance: I 20 Resistance: S 20 Resistance: P 20 Evasion (%) 55 Offensive Hacking 10 Item Schematics ----------------- None Robot Schematics ------------------ None Fabricated ------------ Nothing Repaired ---------- Nothing Alien Tech Used ----------------- None Achievements -------------- None Challenges ------------ None Game ------ Seed SurgeProjectileLeg Manual? 0 Play Time 00:09:50 Cumulative 90.5 hours Start 2025.07.30 @ 13:20:08 End 2025.07.30 @ 13:29:43 Sessions 1 Manual Loads 0 Difficulty Adventurer Special Mode None Game No. 123 Rogue 13 Adventurer 110 Explorer 0 Win Type - Total 0 Types 0/0/0/0/0/0/0/0/0/0 Lore% 67 Gallery% 60 Achievement% 46 Wizard Run 0 Options --------- Layout 1 ASCII 0 Keyboard 0 Movement Mouse Keybinds 0 Fullscreen 1 Font 32/SmallcapsGlow Map View 50x35 Zoom Use 0% Tactical HUD 0 Map Filters NONE Filters NONE Steam 1 RUN: 123356f7-f03b-463d-bef9-bd128349c961